fUSD/lending_fUSD_20240725
["ID","MTS","AMOUNT","RATE_DAILY","PERIOD"]
[333168234,1721907033788,-1168.29,8.219e-05,2]
[333168235,1721907033799,-8229.22832339,8.25e-05,2]
[333168236,1721907033808,-387.69234534,8.511e-05,2]
[333168237,1721907033818,-300.0,8.517e-05,2]
[333168238,1721907033828,-419.78404182,8.721e-05,2]
[333168239,1721907033838,-387.69234534,9.028e-05,2]
[333168240,1721907033847,-419.78404182,9.039e-05,2]
[333168241,1721907033856,-169.54,9.049e-05,2]
[333168242,1721907033867,-524.40599388,9.052e-05,2]
[333168243,1721907033899,-573.35126456,9.052e-05,2]
[333168244,1721907033911,-262.42274156,9.052e-05,2]
[333168245,1721907033920,-334.91953751,9.113e-05,2]
[333168246,1721907033966,-52.77280783,9.113e-05,2]
[333168247,1721907033975,-666.81557825,9.132e-05,2]
[333168248,1721907034219,-333.18442175,9.132e-05,2]
[333168249,1721907034229,-2000.0,9.133e-05,2]
[333168250,1721907034238,-419.78404182,9.18e-05,2]
[333168251,1721907034247,-285.13,9.217e-05,2]
[333168252,1721907034256,-419.78404182,9.334e-05,2]
[333168253,1721907034266,-420.0,9.369e-05,2]
[333168254,1721907034275,-150.0,9.369e-05,2]
[333168255,1721907034286,-150.0,9.37e-05,2]
[333168256,1721907034296,-787.21,9.37e-05,2]
[333168257,1721907034308,-355.87,9.37e-05,2]
[333168258,1721907034318,-219.6,9.37e-05,2]
[333168260,1721907034327,-529.84,9.37e-05,2]
[333168262,1721907034337,-150.0,9.37e-05,2]
[333168264,1721907034346,-355.87,9.37e-05,2]
[333168266,1721907034356,-150.0,9.37e-05,2]
[333168268,1721907034366,-355.87,9.37e-05,2]
[333168270,1721907034376,-150.0,9.37e-05,2]
[333168272,1721907034385,-355.87,9.37e-05,2]
[333168274,1721907034394,-150.0,9.37e-05,2]
[333168276,1721907034404,-355.87,9.37e-05,2]
[333168278,1721907034414,-355.38,9.37e-05,2]
[333168280,1721907034424,-387.69234534,9.528e-05,2]
[333168282,1721907034433,-2617.9838,9.66e-05,2]
[333168284,1721907034443,-499.99,9.67e-05,2]
[333168286,1721907034453,-340.05098615,9.67e-05,2]
[333168288,1721907034464,-308.55186272,9.67e-05,2]
[333168289,1721907034477,-3800.0,9.67e-05,2]
[333168291,1721907038499,-1005.32627999,9.67e-05,2]
[333168292,1721907038516,-1270.89616337,9.67e-05,2]
[333168293,1721907038536,-319.504,9.67e-05,2]
[333168301,1721907040415,-1650.63949604,9.67e-05,2]
[333168302,1721907040473,-1552.23,9.67e-05,2]
[333168313,1721907043619,-1471.99,9.536e-05,2]
[333168314,1721907043630,-674.02973803,9.67e-05,2]
[333168315,1721907043641,-7627.0614737,9.67e-05,2]
[333168316,1721907043655,-150.99,9.67e-05,2]
[333168318,1721907043665,-421.25,9.67e-05,2]
[333168319,1721907043674,-299.99,9.67e-05,2]
[333168320,1721907043683,-357.07,9.67e-05,2]
[333168321,1721907043693,-387.69234534,9.684e-05,2]
[333168322,1721907043702,-6731.262,9.752e-05,2]
[333168323,1721907043712,-171.97,9.752e-05,2]
[333168324,1721907043721,-250.0,9.752e-05,2]
[333168325,1721907043731,-23900.0,9.752e-05,2]
[333168326,1721907043740,-200.0,9.752e-05,2]
[333168327,1721907043750,-419.78404182,9.823e-05,2]
[333168328,1721907043759,-5403.33,9.83e-05,2]
[333168329,1721907043768,-200.0,9.9e-05,3]
[333168330,1721907043777,-150.0,9.918e-05,2]
[333168331,1721907043786,-500.0,0.0001,3]
[333168332,1721907043795,-3000.0,0.0001,2]
[333168333,1721907043805,-387.69234534,0.00010049,2]
[333168334,1721907043814,-800.0,0.000101,3]
[333168335,1721907043823,-210.0,0.0001013,2]
[333168336,1721907043832,-419.78404182,0.0001013,2]
[333168337,1721907043841,-1100.0,0.000102,3]
[333168338,1721907043851,-658.4187,0.00010211,2]
[333168339,1721907043861,-387.69234534,0.00010229,2]
[333168340,1721907043870,-1000.0,0.00010274,2]
[333168341,1721907043879,-1400.0,0.000103,3]
[333168342,1721907043887,-255.0,0.00010306,2]
[333168343,1721907043897,-1580.0,0.00010311,2]
[333168344,1721907043906,-1253.0,0.00010311,2]
[333168345,1721907043915,-362.0,0.00010311,2]
[333168346,1721907043924,-450.0,0.00010311,2]
[333168347,1721907043933,-419.78404182,0.00010389,2]
[333168348,1721907043942,-200.0,0.000104,3]
[333168349,1721907043951,-43.82866482,0.00010432,2]
[333168365,1721907046385,-2994.14479695,9.665e-05,2]
[333168366,1721907046396,-3860.0935711,9.665e-05,2]
[333168367,1721907046555,-1028.57603506,9.665e-05,2]
[333168368,1721907046829,-2117.18559689,9.665e-05,2]
[333168369,1721907046839,-1124.46133518,0.00010432,2]
[333168370,1721907046848,-387.69234534,0.00010457,2]
[333168371,1721907046857,-200.0,0.000105,3]
[333168372,1721907046866,-324.0409,0.00010564,2]
[333168373,1721907046875,-319.8121,0.00010564,2]
[333168374,1721907046884,-419.78404182,0.00010565,2]
[333168375,1721907046893,-200.0,0.000106,3]
[333168376,1721907046902,-1000.0,0.000106,2]
[333168377,1721907046911,-210.0,0.0001065,2]
[333168378,1721907046920,-602.8092,0.00010671,2]
[333168379,1721907046929,-500.0,0.00010684,2]
[333168380,1721907046938,-2500.0,0.00010684,2]
[333168381,1721907046947,-2300.0,0.00010684,2]
[333168382,1721907046955,-600.0,0.00010684,2]
[333168383,1721907046964,-200.0,0.000107,3]
[333168384,1721907046973,-419.78404182,0.00010733,2]
[333168385,1721907046982,-387.69234534,0.00010775,2]
[333168386,1721907046991,-500.0,0.0001078,2]
[333168387,1721907047000,-14249.2437,0.0001078,2]
[333168388,1721907047207,-13572.9743,0.0001078,2]
[333168389,1721907047217,-2500.0,0.0001078,2]
[333168390,1721907047226,-500.0,0.00010792,2]
[333168391,1721907047235,-500.0,0.00010793,2]
[333168392,1721907047244,-500.0,0.00010793,2]
[333168393,1721907047253,-165.18250567,0.00010799,2]
[333168394,1721907047262,-993.0,0.000108,3]
[333168395,1721907047271,-1178.85551378,0.00010858,2]
[333168396,1721907047281,-809.3350559,0.00010873,2]
[333168397,1721907047291,-1117.8113128,0.00010873,2]
[333168398,1721907047300,-252.10267672,0.00010873,2]
[333168399,1721907047309,-5721.4924235,0.00010873,2]
[333168400,1721907047319,-264763.63018665,0.0001088,2]
[333168414,1721907135378,153.4,0.000149,31]
[333168415,1721907135440,153.4,0.000149,31]
[333168416,1721907135502,153.4,0.000149,31]
[333168417,1721907135559,153.4,0.000149,31]
[333168425,1721907738032,153.43,0.000149,31]
[333168426,1721907738074,153.43,0.000149,31]
[333168427,1721907738105,153.43,0.000149,31]
[333168428,1721907738153,153.43,0.000149,31]
[333168429,1721907834167,-1500.0,0.000112,7]
[333168430,1721907834193,-5575.0,0.00011463,7]
[333168431,1721907834221,-12019.6639126,0.00011781,7]
[333168432,1721907834246,-3704.52129901,0.00011781,7]
[333168433,1721907834271,-57000.81478839,0.00011781,7]
[333168436,1721908117550,2206.93168191,9.5e-05,6]
[333168439,1721908219133,-776.30368659,8.15e-05,2]
[333168440,1721908219154,-316.718,8.15e-05,2]
[333168441,1721908219178,-1127.08,8.219e-05,2]
[333168442,1721908219200,-1369.6340373,9.5e-05,2]
[333168443,1721908219221,-301.14028754,9.5e-05,2]
[333168444,1721908219243,-7569.30838559,9.5e-05,2]
[333168445,1721908219266,-3539.81560298,9.5e-05,2]
[333168456,1721908232296,-2354.73262451,9.5e-05,2]
[333168458,1721908232308,-453.51,9.5e-05,2]
[333168459,1721908232320,-395.67391052,9.5e-05,2]
[333168460,1721908232351,-2299.17268968,9.5e-05,2]
[333168461,1721908232363,-933.49206678,9.5e-05,2]
[333168462,1721908232374,-1850.72560984,9.5e-05,2]
[333168463,1721908232385,-2202.92086524,9.5e-05,2]
[333168464,1721908232459,-1343.41201199,9.5e-05,2]
[333168465,1721908232515,-1117.28551439,9.5e-05,2]
[333168466,1721908232567,-858.16390953,9.5e-05,2]
[333168467,1721908232579,-283.39033038,9.5e-05,2]
[333168473,1721908238343,-1313.36975595,9.5e-05,2]
[333168474,1721908238354,-2603.10643675,9.5e-05,2]
[333168475,1721908238396,-415.15420603,9.5e-05,2]
[333168476,1721908238408,-1592.65686539,9.5e-05,2]
[333168477,1721908238418,-602.5968,9.5e-05,2]
[333168478,1721908238450,-734.89712077,9.5e-05,2]
[333168479,1721908238461,-1393.41253977,9.5e-05,2]
[333168480,1721908238472,-425.4,9.5e-05,2]
[333168481,1721908238556,-3700.0,9.5e-05,2]
[333168482,1721908238567,-27760.9389144,9.5e-05,2]
[333168483,1721908238611,-1000.91904001,9.5e-05,2]
[333168500,1721908240697,-6664.00000001,9.5e-05,2]
[333168501,1721908240855,-8329.65436545,9.5e-05,2]
[333168502,1721908240867,-5265.44,9.5e-05,2]
[333168504,1721908240964,-4088.3228228,9.5e-05,2]
[333168514,1721908243417,-43640.96858825,9.5e-05,2]
[333168515,1721908243427,-254.29015338,9.5e-05,2]
[333168516,1721908243436,-20365.96174232,9.5e-05,2]
[333168517,1721908243445,-171.97,9.752e-05,2]
[333168518,1721908243456,-2000.0,9.752e-05,2]
[333168519,1721908243465,-600.0,9.752e-05,2]
[333168520,1721908243474,-23900.0,9.758e-05,2]
[333168521,1721908243484,-250.0,9.775e-05,2]
[333168522,1721908243493,-1217.7026,9.801e-05,2]
[333168523,1721908243503,-400.0,9.813e-05,2]
[333168524,1721908243511,-150.0,9.863e-05,2]
[333168525,1721908243522,-184.09406241,9.888e-05,2]
[333168526,1721908243531,-219.99241863,0.0001,4]
[333168527,1721908243540,-150.0,0.00010299,2]
[333168528,1721908243550,-1127.08,0.00010463,2]
[333168529,1721908243559,-499.99,0.00010584,2]
[333168530,1721908243568,-220.99,0.00010658,2]
[333168531,1721908243577,-1000.0,0.00010662,2]
[333168532,1721908243587,-1666.81,0.00010662,2]
[333168533,1721908243596,-179.99,0.00010662,2]
[333168534,1721908243605,-2151.4055,0.0001068,2]
[333168535,1721908243614,-169.46309801,0.0001068,2]
[333168536,1721908243624,-150.0,0.00010683,2]
[333168537,1721908243633,-2100.0,0.00010684,2]
[333168538,1721908243642,-500.0,0.00010684,2]
[333168539,1721908243651,-500.0,0.00010684,2]
[333168540,1721908243659,-1000.0,0.00010698,2]
[333168541,1721908243668,-1633.90818686,0.00010699,2]
[333168542,1721908243677,-21957.18722,0.000107,2]
[333168543,1721908243686,-1000.0,0.00010771,2]
[333168544,1721908243695,-310930.0,0.00010771,2]
[333168545,1721908243704,-164.45935657,0.00010777,2]
[333168546,1721908243714,-173188.59666469,0.0001078,2]
[333168547,1721908243758,-1277.32410565,0.0001078,2]
[333168548,1721908243787,-977.79543901,0.0001078,2]
[333168549,1721908243848,-24556.28379065,0.0001078,2]
[333168551,1721908243858,-10767.7981,0.0001078,2]
[333168552,1721908243867,-169.46309799,0.0001078,2]
[333168553,1721908243876,-500.0,0.00010792,2]
[333168554,1721908243886,-500.0,0.00010793,2]
[333168555,1721908243895,-1500.0,0.000108,3]
[333168556,1721908243904,-1122.80088267,0.00010879,2]
[333168558,1721908243913,-210.47845723,0.00010879,2]
[333168559,1721908243923,-1736.16890486,0.00010879,2]
[333168560,1721908243932,-139342.25558759,0.0001088,2]
[333168561,1721908243943,-67845.27395288,0.0001088,2]
[333168562,1721908243954,-93560.05780808,0.0001088,2]
[333168563,1721908243978,-357922.64510094,0.0001088,2]
[333168590,1721908246422,-71293.85205713,0.0001088,2]
[333168592,1721908246431,-335.699513,0.0001088,2]
[333168594,1721908246441,-335.699513,0.0001088,2]
[333168596,1721908246451,-151.0,0.0001088,2]
[333168598,1721908246460,-3000.0,0.0001088,2]
[333168600,1721908246470,-169.46309799,0.0001088,2]
[333168602,1721908246479,-11711.83208327,0.0001089,2]
[333168603,1721908246489,-1989.20183995,0.00010899,2]
[333168604,1721908246499,-452.78543713,0.00010899,2]
[333168605,1721908246710,-452.78543707,0.00010899,2]
[333168606,1721908246721,-452.78543707,0.00010899,2]
[333168607,1721908246730,-452.78543707,0.00010899,2]
[333168608,1721908246739,-452.78543707,0.00010899,2]
[333168609,1721908246748,-452.78543707,0.00010899,2]
[333168610,1721908246757,-452.78543707,0.00010899,2]
[333168611,1721908246766,-452.78543707,0.00010899,2]
[333168612,1721908246777,-452.78543707,0.00010899,2]
[333168613,1721908246786,-282.2224095,0.00010899,2]
[333168614,1721908246795,-282.22240947,0.00010899,2]
[333168616,1721908246804,-282.22240947,0.00010899,2]
[333168618,1721908246814,-282.22240947,0.00010899,2]
[333168620,1721908246823,-282.22240947,0.00010899,2]
[333168622,1721908246832,-282.22240947,0.00010899,2]
[333168624,1721908246842,-282.22240947,0.00010899,2]
[333168626,1721908246852,-282.22240947,0.00010899,2]
[333168628,1721908246861,-282.22240947,0.00010899,2]
[333168630,1721908246870,-189.3945376,0.00010899,2]
[333168632,1721908246879,-162.14827499,0.000109,2]
[333168634,1721908246888,-162.14827496,0.000109,2]
[333168636,1721908246897,-162.14827496,0.000109,2]
[333168638,1721908246907,-162.14827496,0.000109,2]
[333168640,1721908246916,-452.78543707,0.000109,2]
[333168642,1721908246927,-3217.55388924,0.000109,2]
[333168643,1721908246936,-282.22240947,0.000109,2]
[333168645,1721908246945,-300.0,0.00010958,2]
[333168647,1721908246954,-300.0,0.00010958,2]
[333168649,1721908246964,-300.0,0.00010958,2]
[333168651,1721908246974,-446.55147226,0.00010958,2]
[333168652,1721908246983,-151.0,0.00010958,2]
[333168654,1721908246992,-151.0,0.00010958,2]
[333168656,1721908247001,-151.0,0.00010958,2]
[333168658,1721908247011,-151.0,0.00010958,2]
[333168660,1721908247026,-151.0,0.00010958,2]
[333168662,1721908247035,-151.0,0.00010958,2]
[333168664,1721908247047,-151.0,0.00010958,2]
[333168666,1721908247057,-475.24540886,0.00010958,2]
[333168668,1721908247066,-500.0,0.00010958,2]
[333168670,1721908247075,-500.0,0.00010958,2]
[333168672,1721908247086,-500.0,0.00010958,2]
[333168674,1721908247098,-500.0,0.00010958,2]
[333168676,1721908247107,-500.0,0.00010958,2]
[333168677,1721908247117,-500.0,0.00010958,2]
[333168679,1721908247126,-500.0,0.00010958,2]
[333168681,1721908247135,-500.0,0.00010958,2]
[333168683,1721908247145,-625.86069317,0.00010958,2]
[333168685,1721908247154,-787.16,0.00010958,2]
[333168687,1721908247163,-787.16,0.00010958,2]
[333168689,1721908247172,-787.16,0.00010958,2]
[333168690,1721908247181,-787.16,0.00010958,2]
[333168692,1721908247191,-787.16,0.00010958,2]
[333168694,1721908247200,-787.16,0.00010958,2]
[333168696,1721908247209,-638.91,0.00010958,2]
[333168698,1721908247218,-638.91,0.00010958,2]
[333168700,1721908247227,-638.91,0.00010958,2]
[333168701,1721908247236,-638.91,0.00010958,2]
[333168703,1721908247246,-638.91,0.00010958,2]
[333168705,1721908247255,-638.91,0.00010958,2]
[333168707,1721908247264,-500.0,0.00010958,2]
[333168709,1721908247275,-637.67,0.00010958,2]
[333168711,1721908247285,-173.81,0.00010958,2]
[333168713,1721908247294,-500.0,0.00010958,2]
[333168714,1721908247303,-500.0,0.00010958,2]
[333168716,1721908247317,-248.33301284,0.00010958,2]
[333168718,1721908247326,-902.86,0.00010958,2]
[333168720,1721908247335,-902.86,0.00010958,2]
[333168722,1721908247344,-902.86,0.00010958,2]
[333168724,1721908247354,-902.86,0.00010958,2]
[333168726,1721908247363,-902.86,0.00010958,2]
[333168728,1721908247372,-902.86,0.00010958,2]
[333168730,1721908247382,-500.0,0.00010958,2]
[333168731,1721908247391,-500.0,0.00010958,2]
[333168733,1721908247401,-500.0,0.00010958,2]
[333168735,1721908247410,-500.0,0.00010958,2]
[333168737,1721908247419,-589.46387487,0.00010958,2]
[333168739,1721908247429,-229.36984394,0.00010958,2]
[333168741,1721908247440,-500.0,0.00010958,2]
[333168744,1721908247455,-500.0,0.00010958,2]
[333168745,1721908247464,-1576.64,0.00010958,2]
[333168747,1721908247473,-1576.64,0.00010958,2]
[333168749,1721908247483,-1576.64,0.00010958,2]
[333168750,1721908247492,-1576.64,0.00010958,2]
[333168751,1721908247501,-1576.64,0.00010958,2]
[333168752,1721908247510,-1576.64,0.00010958,2]
[333168753,1721908247518,-500.0,0.00010958,2]
[333168754,1721908247527,-500.0,0.00010958,2]
[333168755,1721908247536,-594.55,0.00010958,2]
[333168756,1721908247545,-500.0,0.00010958,2]
[333168757,1721908247554,-500.0,0.00010958,2]
[333168758,1721908247563,-500.0,0.00010958,2]
[333168759,1721908247572,-500.0,0.00010958,2]
[333168760,1721908247581,-500.0,0.00010958,2]
[333168761,1721908247590,-500.0,0.00010958,2]
[333168762,1721908247600,-500.0,0.00010958,2]
[333168763,1721908247610,-645.35,0.00010958,2]
[333168764,1721908247620,-500.0,0.00010958,2]
[333168765,1721908247630,-415.3855699,0.00010958,2]
[333168766,1721908247639,-500.0,0.00010958,2]
[333168767,1721908247648,-531.4,0.00010958,2]
[333168768,1721908247657,-500.0,0.00010958,2]
[333168769,1721908247668,-500.0,0.00010958,2]
[333168770,1721908247677,-500.0,0.00010958,2]
[333168771,1721908247688,-500.0,0.00010958,2]
[333168772,1721908247697,-500.0,0.00010958,2]
[333168773,1721908247707,-500.0,0.00010958,2]
[333168774,1721908247716,-506.57704786,0.00010958,2]
[333168775,1721908247726,-500.0,0.00010958,2]
[333168776,1721908247736,-500.0,0.00010958,2]
[333168777,1721908247745,-500.0,0.00010958,2]
[333168778,1721908247755,-500.0,0.00010958,2]
[333168779,1721908247765,-500.0,0.00010958,2]
[333168780,1721908247774,-500.0,0.00010958,2]
[333168781,1721908247784,-500.0,0.00010958,2]
[333168782,1721908247793,-500.0,0.00010958,2]
[333168783,1721908247803,-500.0,0.00010958,2]
[333168784,1721908247813,-370.48,0.00010958,2]
[333168785,1721908247824,-500.0,0.00010958,2]
[333168786,1721908247834,-525.23,0.00010958,2]
[333168787,1721908247844,-509.71309369,0.00010958,2]
[333168788,1721908247853,-525.23,0.00010958,2]
[333168789,1721908247864,-525.23,0.00010958,2]
[333168790,1721908247873,-525.23,0.00010958,2]
[333168791,1721908247883,-500.0,0.00010958,2]
[333168792,1721908247892,-525.23,0.00010958,2]
[333168793,1721908247902,-525.23,0.00010958,2]
[333168794,1721908247912,-335.699513,0.00010958,2]
[333168795,1721908247922,-335.699513,0.00010958,2]
[333168796,1721908247932,-335.699513,0.00010958,2]
[333168797,1721908247942,-335.699513,0.00010958,2]
[333168798,1721908247952,-335.699513,0.00010958,2]
[333168799,1721908247962,-335.699513,0.00010958,2]
[333168800,1721908247971,-500.0,0.00010958,2]
[333168801,1721908247981,-500.0,0.00010958,2]
[333168802,1721908247991,-335.699513,0.00010958,2]
[333168803,1721908248001,-500.0,0.00010958,2]
[333168804,1721908248013,-500.0,0.00010958,2]
[333168805,1721908248024,-500.0,0.00010958,2]
[333168806,1721908248034,-335.699513,0.00010958,2]
[333168807,1721908248043,-500.0,0.00010958,2]
[333168808,1721908248055,-335.699513,0.00010958,2]
[333168809,1721908248065,-335.699513,0.00010958,2]
[333168810,1721908248075,-335.699513,0.00010958,2]
[333168811,1721908248085,-335.699513,0.00010958,2]
[333168812,1721908248095,-335.699513,0.00010958,2]
[333168813,1721908248106,-335.699513,0.00010958,2]
[333168814,1721908248116,-335.699513,0.00010958,2]
[333168815,1721908248126,-335.699513,0.00010958,2]
[333168816,1721908248136,-500.0,0.00010958,2]
[333168817,1721908248146,-500.0,0.00010958,2]
[333168818,1721908248156,-313.50570763,0.00010958,2]
[333168819,1721908248166,-636.84953145,0.00010958,2]
[333168820,1721908248176,-500.0,0.00010958,2]
[333168821,1721908248186,-500.0,0.00010958,2]
[333168822,1721908248195,-500.0,0.00010958,2]
[333168823,1721908248205,-500.0,0.00010958,2]
[333168824,1721908248216,-500.0,0.00010958,2]
[333168825,1721908248226,-500.0,0.00010958,2]
[333168826,1721908248236,-500.0,0.00010958,2]
[333168827,1721908248246,-500.0,0.00010958,2]
[333168828,1721908248255,-291.86464264,0.00010958,2]
[333168829,1721908248265,-500.0,0.00010958,2]
[333168830,1721908248276,-500.0,0.00010958,2]
[333168831,1721908248285,-500.0,0.00010958,2]
[333168832,1721908248295,-500.0,0.00010958,2]
[333168833,1721908248305,-151.0,0.00010958,2]
[333168834,1721908248314,-151.0,0.00010958,2]
[333168835,1721908248324,-151.0,0.00010958,2]
[333168836,1721908248333,-151.0,0.00010958,2]
[333168837,1721908248343,-151.0,0.00010958,2]
[333168838,1721908248353,-151.0,0.00010958,2]
[333168839,1721908248362,-277.655014,0.00010958,2]
[333168840,1721908248372,-500.0,0.00010958,2]
[333168841,1721908248381,-500.0,0.00010958,2]
[333168842,1721908248391,-500.0,0.00010958,2]
[333168843,1721908248400,-500.0,0.00010958,2]
[333168844,1721908248409,-500.0,0.00010958,2]
[333168845,1721908248419,-500.0,0.00010958,2]
[333168846,1721908248429,-500.0,0.00010958,2]
[333168847,1721908248438,-500.0,0.00010958,2]
[333168848,1721908248448,-504.41648685,0.00010958,2]
[333168849,1721908248458,-500.0,0.00010958,2]
[333168850,1721908248468,-504.95904185,0.00010958,2]
[333168851,1721908248479,-500.0,0.00010958,2]
[333168852,1721908248488,-500.0,0.00010958,2]
[333168853,1721908248497,-500.0,0.00010958,2]
[333168854,1721908248507,-247.42,0.00010958,2]
[333168855,1721908248516,-500.0,0.00010958,2]
[333168856,1721908248528,-500.0,0.00010958,2]
[333168857,1721908248537,-506.43050497,0.00010958,2]
[333168858,1721908248547,-440.65,0.00010958,2]
[333168859,1721908248557,-500.0,0.00010958,2]
[333168860,1721908248567,-500.0,0.00010958,2]
[333168861,1721908248577,-500.0,0.00010958,2]
[333168862,1721908248586,-500.0,0.00010958,2]
[333168863,1721908248596,-500.0,0.00010958,2]
[333168864,1721908248605,-500.0,0.00010958,2]
[333168865,1721908248615,-285.44,0.00010958,2]
[333168866,1721908248624,-500.0,0.00010958,2]
[333168867,1721908248634,-509.1915968,0.00010958,2]
[333168868,1721908248644,-560.63,0.00010958,2]
[333168869,1721908248653,-500.0,0.00010958,2]
[333168870,1721908248664,-379.58855214,0.00010958,2]
[333168871,1721908248676,-150.0,0.00010958,2]
[333168872,1721908248685,-229.95,0.00010958,2]
[333168873,1721908248698,-588.49,0.00010958,2]
[333168874,1721908248711,-525.91,0.00010958,2]
[333168875,1721908248725,-500.0,0.00010958,2]
[333168876,1721908248738,-500.0,0.00010958,2]
[333168877,1721908248751,-500.0,0.00010958,2]
[333168878,1721908248764,-500.0,0.00010958,2]
[333168879,1721908248778,-602.42,0.00010958,2]
[333168880,1721908248788,-500.0,0.00010958,2]
[333168881,1721908248801,-500.0,0.00010958,2]
[333168882,1721908248822,-243.57172966,0.00010958,2]
[333168883,1721908248839,-500.0,0.00010958,2]
[333168884,1721908248855,-500.0,0.00010958,2]
[333168885,1721908248871,-500.0,0.00010958,2]
[333168886,1721908248886,-500.0,0.00010958,2]
[333168887,1721908248902,-500.0,0.00010958,2]
[333168888,1721908248917,-500.0,0.00010958,2]
[333168889,1721908248932,-302.26,0.00010958,2]
[333168890,1721908248947,-500.0,0.00010958,2]
[333168891,1721908248961,-983.36,0.00010958,2]
[333168892,1721908248974,-983.36,0.00010958,2]
[333168893,1721908248987,-500.0,0.00010958,2]
[333168894,1721908249003,-983.36,0.00010958,2]
[333168895,1721908249019,-500.0,0.00010958,2]
[333168896,1721908249035,-983.36,0.00010958,2]
[333168897,1721908249050,-366.24800619,0.00010958,2]
[333168898,1721908249066,-983.36,0.00010958,2]
[333168899,1721908249081,-983.36,0.00010958,2]
[333168900,1721908249094,-500.0,0.00010958,2]
[333168901,1721908249106,-500.0,0.00010958,2]
[333168902,1721908249118,-500.0,0.00010958,2]
[333168903,1721908249132,-500.0,0.00010958,2]
[333168904,1721908249144,-500.0,0.00010958,2]
[333168905,1721908249158,-500.0,0.00010958,2]
[333168906,1721908249171,-625.55022969,0.00010958,2]
[333168907,1721908249185,-500.0,0.00010958,2]
[333168908,1721908249200,-500.0,0.00010958,2]
[333168909,1721908249213,-500.0,0.00010958,2]
[333168910,1721908249228,-500.0,0.00010958,2]
[333168911,1721908249244,-500.0,0.00010958,2]
[333168912,1721908249258,-500.0,0.00010958,2]
[333168913,1721908249274,-500.0,0.00010958,2]
[333168914,1721908249287,-500.0,0.00010958,2]
[333168915,1721908249298,-500.0,0.00010958,2]
[333168916,1721908249310,-500.0,0.00010958,2]
[333168917,1721908249323,-500.0,0.00010958,2]
[333168918,1721908249337,-500.0,0.00010958,2]
[333168919,1721908249351,-500.0,0.00010958,2]
[333168920,1721908249367,-500.0,0.00010958,2]
[333168921,1721908249380,-500.0,0.00010958,2]
[333168922,1721908249395,-500.0,0.00010958,2]
[333168923,1721908249407,-513.45044748,0.00010958,2]
[333168924,1721908249419,-176.00650008,0.00010958,2]
[333168925,1721908249435,-1208.02,0.00010958,2]
[333168926,1721908249449,-1208.02,0.00010958,2]
[333168927,1721908249462,-1208.02,0.00010958,2]
[333168928,1721908249478,-1208.02,0.00010958,2]
[333168929,1721908249493,-1208.02,0.00010958,2]
[333168930,1721908249506,-1208.02,0.00010958,2]
[333168931,1721908249519,-1208.02,0.00010958,2]
[333168932,1721908249535,-500.0,0.00010958,2]
[333168933,1721908249547,-500.0,0.00010958,2]
[333168934,1721908249562,-500.0,0.00010958,2]
[333168935,1721908249574,-500.0,0.00010958,2]
[333168936,1721908249586,-437.89,0.00010958,2]
[333168937,1721908249598,-500.0,0.00010958,2]
[333168938,1721908249611,-332.69,0.00010958,2]
[333168939,1721908249624,-500.0,0.00010958,2]
[333168940,1721908249635,-500.0,0.00010958,2]
[333168941,1721908249649,-189.25,0.00010958,2]
[333168942,1721908249662,-500.0,0.00010958,2]
[333168943,1721908249674,-500.0,0.00010958,2]
[333168944,1721908249687,-500.0,0.00010958,2]
[333168945,1721908249700,-500.0,0.00010958,2]
[333168946,1721908249717,-500.0,0.00010958,2]